[Event "Icelandic Open 2019"]
[Site "Akureyri"]
[Date "2019.06.01"]
[Round "9.5"]
[White "Karlsson, Mikael Johann"]
[Black "Sarkar, Justin"]
[Result "0-1"]
[ECO "A06"]
[WhiteElo "2146"]
[BlackElo "2358"]
[Annotator "ChessBase"]
[PlyCount "70"]
[EventDate "2019.05.25"]
[EventType "swiss"]
[EventCountry "ISL"]
[SourceTitle "playchess.com"]
[Source "ChessBase"]
[SourceQuality "1"]
[TimeControl "40/5400+30:1800+30"]

1. Nf3 {[%emt 0:00:00]} d5 {[%emt 0:12:41]} 2. b3 {[%emt 0:00:44]} c5 {[%emt 0:00:15]} 3. e3 {[%emt 0:00:23]} a6 {[%emt 0:00:52]} 4. Bb2 {[%emt 0:00:19]} Nc6 {[%emt 0:00:08]} 5. d4 {[%emt 0:02:22]} Bg4 {[%emt 0:02:01]} 6. Be2 {[%emt 0:00:46]} e6 {[%emt 0:01:36]} 7. Nbd2 {[%emt 0:00:13]} cxd4 {[%emt 0:08:32]} 8. exd4 {[%emt 0:05:49]} Nf6 {[%emt 0:05:25]} 9. O-O {[%emt 0:02:02]} Be7 {[%emt 0:02:08]} 10. Ne5 {[%emt 0:04:25]} Bxe2 {[%emt 0:00:23]} 11. Qxe2 {[%emt 0:00:05]} Rc8 {[%emt 0:06:42]} 12. c3 {[%emt 0:08:43]} O-O {[%emt 0:02:17]} 13. f4 {[%emt 0:07:26]} Ne8 {[%emt 0:04:09]} 14. f5 {[%emt 0:00:54]} Nxe5 {[%emt 0:13:34]} 15. Qxe5 {[%emt 0:03:27]} Bd6 {[%emt 0:01:18]} 16. Qe2 {[%emt 0:02:56]} exf5 {[%emt 0:00:08]} 17. Rxf5 {[%emt 0:00:21]} g6 {[%emt 0:00:06]} 18. Rf2 {[%emt 0:06:19]} f5 {[%emt 0:01:26]} 19. g4 {[%emt 0:01:15]} Ng7 {[%emt 0:01:21]} 20. Raf1 {[%emt 0:03:42]} Qg5 {[%emt 0:04:47]} 21. h3 {[%emt 0:13:24]} Rce8 {[%emt 0:00:29]} 22. Qf3 {[%emt 0:06:20]} fxg4 {[%emt 0:02:40]} 23. Qxg4 {[%emt 0:01:01]} Qe3 {[%emt 0:01:07]} 24. Nf3 {[%emt 0:01:11]} Re4 {[%emt 0:01:40]} 25. Qg2 {[%emt 0:11:40]} Ne6 {[%emt 0:09:14]} 26. Bc1 {[%emt 0:00:52]} Qxc3 {[%emt 0:00:27]} 27. Bb2 {[%emt 0:01:22]} Qd3 {[%emt 0:03:31]} 28. Ne5 {[%emt 0:00:28]} Qe3 {[%emt 0:08:12]} 29. Ng4 {[%emt 0:06:43]} Rxg4 {[%emt 0:00:25]} 30. Qxg4 {[%emt 0:00:31]} Rxf2 {[%emt 0:01:23]} 31. Rxf2 {[%emt 0:00:39]} Bg3 {[%emt 0:00:08]} 32. Qf3 {[%emt 0:01:35]} Bxf2+ {[%emt 0:00:07]} 33. Qxf2 {[%emt 0:00:05]} Qxh3 {[%emt 0:00:08]} 34. Qf6 {[%emt 0:04:28]} Qg4+ {[%emt 0:02:06]} 35. Kh2 {[%emt 0:01:34]} Qf4+ {[%emt 0:00:36]} 0-1

[Event "Icelandic Open 2019"]
[Site "Akureyri"]
[Date "2019.06.01"]
[Round "9.6"]
[White "Thorhallsson, Throstur"]
[Black "Gislason, Gudmundur"]
[Result "0-1"]
[ECO "B48"]
[WhiteElo "2435"]
[BlackElo "2288"]
[Annotator "ChessBase"]
[PlyCount "74"]
[EventDate "2019.05.25"]
[EventType "swiss"]
[EventCountry "ISL"]
[SourceTitle "playchess.com"]
[Source "ChessBase"]
[SourceQuality "1"]
[TimeControl "40/5400+30:1800+30"]

1. e4 {[%emt 0:09:08]} c5 {[%emt 0:00:00]} 2. Nf3 {[%emt 0:00:25]} Nc6 {[%emt 0:00:00]} 3. d4 {[%emt 0:01:04]} cxd4 {[%emt 0:00:02]} 4. Nxd4 {[%emt 0:00:07]} e6 {[%emt 0:00:09]} 5. Nc3 {[%emt 0:00:33]} Qc7 {[%emt 0:00:06]} 6. Be2 {[%emt 0:02:26]} Nf6 {[%emt 0:01:37]} 7. Be3 {[%emt 0:03:53]} a6 {[%emt 0:03:28]} 8. a3 {[%emt 0:06:14]} Ne5 {[%emt 0:01:54]} 9. f4 {[%emt 0:12:01]} Nc4 {[%emt 0:00:35]} 10. Bc1 {[%emt 0:07:00]} d6 {[%emt 0:10:10]} 11. Qd3 {[%emt 0:03:18]} Nb6 {[%emt 0:07:14]} 12. b3 {[%emt 0:05:32]} Bd7 {[%emt 0:11:03]} 13. Bb2 {[%emt 0:02:10]} Rc8 {[%emt 0:03:28]} 14. O-O-O {[%emt 0:04:05]} Be7 {[%emt 0:03:31]} 15. g4 {[%emt 0:02:54]} e5 {[%emt 0:06:37]} 16. Nf5 {[%emt 0:01:28]} Bxf5 {[%emt 0:00:06]} 17. gxf5 {[%emt 0:01:02]} Nfd7 {[%emt 0:06:23]} 18. Rhg1 {[%emt 0:04:06]} exf4 {[%emt 0:04:51]} 19. Nd5 {[%emt 0:07:28]} Nxd5 {[%emt 0:05:03]} 20. exd5 {[%emt 0:02:57]} Bf6 {[%emt 0:04:01]} 21. Rde1 {[%emt 0:09:26]} O-O {[%emt 0:08:52]} 22. Bd1 {[%emt 0:02:13]} Rfe8 {[%emt 0:02:55]} 23. Bxf6 {[%emt 0:02:52]} Nxf6 {[%emt 0:00:19]} 24. Qd4 {[%emt 0:00:40]} Re5 {[%emt 0:04:14]} 25. Ref1 {[%emt 0:08:13]} Rxd5 {[%emt 0:02:17]} 26. Qf2 {[%emt 0:01:03]} Qc3 {[%emt 0:01:08]} 27. Kb1 {[%emt 0:00:08]} Ne4 {[%emt 0:02:23]} 28. Qg2 {[%emt 0:00:23]} Qe5 {[%emt 0:00:37]} 29. Re1 {[%emt 0:00:37]} f3 {[%emt 0:02:21]} 30. Rxe4 {[%emt 0:00:22]} Rxd1+ {[%emt 0:00:21]} 31. Rxd1 {[%emt 0:00:05]} Qxe4 {[%emt 0:01:00]} 32. Qf2 {[%emt 0:00:54]} Rc3 {[%emt 0:02:30]} 33. Rxd6 {[%emt 0:00:30]} h6 {[%emt 0:00:08]} 34. Kb2 {[%emt 0:00:42]} Re3 {[%emt 0:00:11]} 35. f6 {[%emt 0:00:46]} Qe5+ {[%emt 0:01:07]} 36. Kc1 {[%emt 0:00:35]} Re1+ {[%emt 0:00:42]} 37. Rd1 {[%emt 0:00:02]} Qa1+ {[%emt 0:02:56]} 0-1

[Event "Icelandic Open 2019"]
[Site "Akureyri"]
[Date "2019.06.01"]
[Round "9.7"]
[White "Sigurdarson, Tomas Veigar"]
[Black "Gretarsson, Helgi Ass"]
[Result "0-1"]
[ECO "B06"]
[WhiteElo "1994"]
[BlackElo "2433"]
[Annotator "ChessBase"]
[PlyCount "58"]
[EventDate "2019.05.25"]
[EventType "swiss"]
[EventCountry "ISL"]
[SourceTitle "playchess.com"]
[Source "ChessBase"]
[SourceQuality "1"]
[TimeControl "40/5400+30:1800+30"]

1. e4 {[%emt 0:00:00]} g6 {[%emt 0:00:00]} 2. Nc3 {[%emt 0:00:00]} Bg7 {[%emt 0:00:00]} 3. f4 {[%emt 0:00:00]} a6 {[%emt 0:00:04]} 4. Nf3 {[%emt 0:00:12]} d6 {[%emt 0:00:07]} 5. Bc4 {[%emt 0:00:39]} c5 {[%emt 0:02:40]} 6. d3 {[%emt 0:00:45]} Nc6 {[%emt 0:00:07]} 7. O-O {[%emt 0:00:19]} e6 {[%emt 0:04:55]} 8. f5 {[%emt 0:12:33]} Nf6 {[%emt 0:21:31]} 9. Qe1 {[%emt 0:14:32]} O-O {[%emt 0:06:10]} 10. Qh4 {[%emt 0:02:16]} d5 {[%emt 0:08:10]} 11. exd5 {[%emt 0:05:14]} exd5 {[%emt 0:00:25]} 12. Bg5 {[%emt 0:00:17]} h6 {[%emt 0:03:43]} 13. fxg6 {[%emt 0:01:43]} hxg5 {[%emt 0:00:11]} 14. Nxg5 {[%emt 0:00:06]} dxc4 {[%emt 0:00:04]} 15. Rxf6 {[%emt 0:00:19]} Qd4+ {[%emt 0:00:04]} 16. Qxd4 {[%emt 0:01:11]} cxd4 {[%emt 0:01:32]} 17. gxf7+ {[%emt 0:00:22]} Kh8 {[%emt 0:07:04]} 18. Rf4 {[%emt 0:01:36]} dxc3 {[%emt 0:01:46]} 19. Rh4+ {[%emt 0:00:07]} Bh6 {[%emt 0:00:03]} 20. Rxh6+ {[%emt 0:00:06]} Kg7 {[%emt 0:00:03]} 21. Rh7+ {[%emt 0:02:26]} Kg6 {[%emt 0:00:10]} 22. h4 {[%emt 0:00:19]} cxb2 {[%emt 0:00:10]} 23. Rf1 {[%emt 0:02:21]} c3 {[%emt 0:04:19]} 24. Kf2 {[%emt 0:01:15]} Be6 {[%emt 0:04:10]} 25. Ke3 {[%emt 0:00:11]} Bxa2 {[%emt 0:01:47]} 26. h5+ {[%emt 0:00:21]} Kxg5 {[%emt 0:00:11]} 27. Rg7+ {[%emt 0:00:06]} Kh6 {[%emt 0:00:05]} 28. Rg6+ {[%emt 0:00:08]} Kh7 {[%emt 0:00:17]} 29. Rff6 {[%emt 0:00:29]} Rxf7 {[%emt 0:00:55] Kd4 [%emt 00:02:05]} 0-1

[Event "Icelandic Open 2019"]
[Site "Akureyri"]
[Date "2019.06.01"]
[Round "9.8"]
[White "Sigurdsson, Snorri Thor"]
[Black "Thorfinnsson, Bjorn"]
[Result "1/2-1/2"]
[ECO "A45"]
[WhiteElo "1965"]
[BlackElo "2389"]
[Annotator "ChessBase"]
[PlyCount "101"]
[EventDate "2019.05.25"]
[EventType "swiss"]
[EventCountry "ISL"]
[SourceTitle "playchess.com"]
[Source "ChessBase"]
[SourceQuality "1"]
[TimeControl "40/5400+30:1800+30"]

1. d4 {[%emt 0:00:00]} Nf6 {[%emt 0:09:21]} 2. Bg5 {[%emt 0:00:21]} Ne4 {[%emt 0:06:17]} 3. Bf4 {[%emt 0:00:08]} c5 {[%emt 0:00:14]} 4. f3 {[%emt 0:00:22]} Nf6 {[%emt 0:01:06]} 5. d5 {[%emt 0:00:49]} d6 {[%emt 0:00:35]} 6. e4 {[%emt 0:00:42]} g6 {[%emt 0:03:14]} 7. Nc3 {[%emt 0:06:34]} Bg7 {[%emt 0:00:37]} 8. Qd2 {[%emt 0:00:42]} h5 {[%emt 0:03:13]} 9. Bb5+ {[%emt 0:03:36]} Bd7 {[%emt 0:02:02]} 10. Bc4 {[%emt 0:01:04]} O-O {[%emt 0:06:39]} 11. Bh6 {[%emt 0:00:38]} b5 {[%emt 0:06:04]} 12. Bxg7 {[%emt 0:02:08]} Kxg7 {[%emt 0:02:37]} 13. Nxb5 {[%emt 0:02:51]} Bxb5 {[%emt 0:12:49]} 14. Bxb5 {[%emt 0:00:15]} Qb6 {[%emt 0:00:05]} 15. c4 {[%emt 0:02:13]} Nbd7 {[%emt 0:00:15]} 16. Bxd7 {[%emt 0:10:04]} Nxd7 {[%emt 0:00:17]} 17. Ne2 {[%emt 0:01:27]} Rfb8 {[%emt 0:00:40]} 18. Rb1 {[%emt 0:05:36]} a5 {[%emt 0:06:55]} 19. O-O {[%emt 0:02:46]} Ra7 {[%emt 0:00:50]} 20. f4 {[%emt 0:09:37]} Qb4 {[%emt 0:06:13]} 21. Qd3 {[%emt 0:00:26]} Nb6 {[%emt 0:01:13]} 22. Rfc1 {[%emt 0:06:09]} Rab7 {[%emt 0:03:04]} 23. e5 {[%emt 0:07:00]} Qa4 {[%emt 0:09:20]} 24. exd6 {[%emt 0:05:37]} exd6 {[%emt 0:00:24]} 25. f5 {[%emt 0:02:12]} Nd7 {[%emt 0:00:52]} 26. b3 {[%emt 0:04:23]} Ne5 {[%emt 0:01:30]} 27. Qc2 {[%emt 0:01:41]} Qd7 {[%emt 0:01:32]} 28. fxg6 {[%emt 0:01:52]} fxg6 {[%emt 0:03:59]} 29. Nc3 {[%emt 0:00:39]} Qg4 {[%emt 0:01:10]} 30. Rf1 {[%emt 0:00:45]} Qd4+ {[%emt 0:01:11]} 31. Kh1 {[%emt 0:00:55]} Ng4 {[%emt 0:00:14]} 32. Nb5 {[%emt 0:02:32]} Qe5 {[%emt 0:02:35]} 33. Qb2 {[%emt 0:00:43]} Qxb2 {[%emt 0:01:57]} 34. Rxb2 {[%emt 0:00:02]} Rxb5 {[%emt 0:00:12]} 35. cxb5 {[%emt 0:00:03]} Rxb5 {[%emt 0:00:04]} 36. Re2 {[%emt 0:02:25]} Ne5 {[%emt 0:00:19]} 37. Ref2 {[%emt 0:00:33]} c4 {[%emt 0:04:37]} 38. bxc4 {[%emt 0:01:39]} Nxc4 {[%emt 0:00:05]} 39. Rf7+ {[%emt 0:01:38]} Kh6 {[%emt 0:00:57]} 40. h3 {[%emt 0:00:00]} Rxd5 {[%emt 0:00:00]} 41. R1f2 {[%emt 0:08:59]} Ne3 {[%emt 0:01:26]} 42. R7f3 {[%emt 0:02:57]} Rd3 {[%emt 0:02:05]} 43. Kg1 {[%emt 0:07:57]} d5 {[%emt 0:01:03]} 44. Re2 {[%emt 0:01:07]} d4 {[%emt 0:02:10]} 45. Kf2 {[%emt 0:00:39]} Kg5 {[%emt 0:05:15]} 46. g3 {[%emt 0:09:22]} Rd1 {[%emt 0:07:56]} 47. Re1 {[%emt 0:07:13]} Rd2+ {[%emt 0:00:28]} 48. Re2 {[%emt 0:00:10]} Rd1 {[%emt 0:00:48]} 49. Rb2 {[%emt 0:00:39]} Rf1+ {[%emt 0:00:08]} 50. Ke2 Rh1 {[%emt 0:00:02]} 51. Kf2 {[%emt 0:00:04]} 1/2-1/2

[Event "Icelandic Open 2019"]
[Site "Akureyri"]
[Date "2019.06.01"]
[Round "9.9"]
[White "Stefansson, Vignir Vatnar"]
[Black "Johannsson, Birkir Isak"]
[Result "1-0"]
[ECO "D00"]
[WhiteElo "2291"]
[BlackElo "1981"]
[Annotator "ChessBase"]
[PlyCount "85"]
[EventDate "2019.05.25"]
[EventType "swiss"]
[EventCountry "ISL"]
[SourceTitle "playchess.com"]
[Source "ChessBase"]
[SourceQuality "1"]
[TimeControl "40/5400+30:1800+30"]

1. d4 {[%emt 0:00:00]} d5 {[%emt 0:00:00]} 2. Nc3 {[%emt 0:00:00]} Nf6 {[%emt 0:01:20]} 3. Bf4 {[%emt 0:00:00]} Bf5 {[%emt 0:07:17]} 4. f3 {[%emt 0:01:23]} e6 {[%emt 0:00:07]} 5. g4 {[%emt 0:00:27]} Bg6 {[%emt 0:00:04]} 6. h4 {[%emt 0:00:06]} h5 {[%emt 0:08:40]} 7. g5 {[%emt 0:00:30]} Nfd7 {[%emt 0:00:11]} 8. e3 {[%emt 0:08:14]} Be7 {[%emt 0:06:20]} 9. Bd3 {[%emt 0:04:41]} Nf8 {[%emt 0:03:08]} 10. e4 {[%emt 0:09:39]} c6 {[%emt 0:03:53]} 11. Nge2 {[%emt 0:01:14]} Nbd7 {[%emt 0:03:19]} 12. Bg3 {[%emt 0:10:28]} Nb6 {[%emt 0:06:02]} 13. Qd2 {[%emt 0:04:13]} Bd6 {[%emt 0:03:44]} 14. Bf2 {[%emt 0:06:15]} Qc7 {[%emt 0:02:13]} 15. O-O-O {[%emt 0:00:32]} O-O-O {[%emt 0:00:51]} 16. Be3 {[%emt 0:01:25]} Kb8 {[%emt 0:04:45]} 17. Kb1 {[%emt 0:10:24]} Nc8 {[%emt 0:01:51]} 18. Nf4 {[%emt 0:05:18]} Ne7 {[%emt 0:01:36]} 19. a3 {[%emt 0:08:21]} Qc8 {[%emt 0:00:30]} 20. Qf2 {[%emt 0:00:47]} Nd7 {[%emt 0:01:10]} 21. Nce2 {[%emt 0:05:01]} Rhe8 {[%emt 0:00:57]} 22. Ng3 {[%emt 0:00:32]} Bxf4 {[%emt 0:05:55]} 23. Bxf4+ {[%emt 0:00:05]} Ka8 {[%emt 0:00:11]} 24. c4 {[%emt 0:02:28]} Nb6 {[%emt 0:05:39]} 25. c5 {[%emt 0:01:45]} Nd7 {[%emt 0:00:52]} 26. Bd6 {[%emt 0:00:32]} Nb8 {[%emt 0:00:48]} 27. Be5 {[%emt 0:00:21]} Rg8 {[%emt 0:00:48]} 28. b4 {[%emt 0:00:43]} Qd7 {[%emt 0:00:56]} 29. Qb2 {[%emt 0:01:46]} Nc8 {[%emt 0:00:46]} 30. a4 {[%emt 0:01:37]} Rdf8 {[%emt 0:00:25]} 31. b5 {[%emt 0:00:32]} f6 {[%emt 0:00:12]} 32. gxf6 {[%emt 0:00:08]} gxf6 {[%emt 0:00:04]} 33. Bf4 {[%emt 0:00:21]} Re8 {[%emt 0:01:03]} 34. Ka1 {[%emt 0:02:51]} Rgf8 {[%emt 0:01:12]} 35. Rhf1 {[%emt 0:00:28]} Rf7 {[%emt 0:00:42]} 36. Bxb8 {[%emt 0:00:30]} Kxb8 {[%emt 0:00:01]} 37. bxc6 {[%emt 0:00:08]} Qc7 {[%emt 0:00:22]} 38. Qxb7+ {[%emt 0:00:24]} Qxb7 {[%emt 0:00:14]} 39. cxb7 {[%emt 0:00:02]} Rxb7 {[%emt 0:00:20]} 40. Ba6 {[%emt 0:00:00]} Rc7 {[%emt 0:00:00]} 41. Rb1+ {[%emt 0:02:56]} Ka8 {[%emt 0:01:28]} 42. Rb3 {[%emt 0:00:27]} Ne7 {[%emt 0:01:37]} 43. Rfb1 {[%emt 0:00:11]} 1-0

[Event "Icelandic Open 2019"]
[Site "Akureyri"]
[Date "2019.06.01"]
[Round "9.10"]
[White "Ruelland, Geoffrey"]
[Black "Thorhallsson, Simon"]
[Result "0-1"]
[ECO "B92"]
[WhiteElo "1955"]
[BlackElo "2184"]
[Annotator "ChessBase"]
[PlyCount "88"]
[EventDate "2019.05.25"]
[EventType "swiss"]
[EventCountry "ISL"]
[SourceTitle "playchess.com"]
[Source "ChessBase"]
[SourceQuality "1"]
[TimeControl "40/5400+30:1800+30"]

1. e4 {[%emt 0:00:00]} c5 {[%emt 0:00:00]} 2. Nf3 {[%emt 0:00:13]} d6 {[%emt 0:00:00]} 3. d4 {[%emt 0:00:24]} cxd4 {[%emt 0:00:00]} 4. Nxd4 {[%emt 0:00:09]} Nf6 {[%emt 0:00:01]} 5. Nc3 {[%emt 0:00:24]} a6 {[%emt 0:00:06]} 6. Be2 {[%emt 0:01:06]} e5 {[%emt 0:00:15]} 7. Nb3 {[%emt 0:00:10]} Be7 {[%emt 0:00:08]} 8. Be3 {[%emt 0:00:21]} O-O {[%emt 0:00:29]} 9. O-O {[%emt 0:06:16]} Be6 {[%emt 0:00:16]} 10. f4 {[%emt 0:01:07]} exf4 {[%emt 0:01:31]} 11. Rxf4 {[%emt 0:00:13]} Nc6 {[%emt 0:06:04]} 12. Nd5 {[%emt 0:00:36]} Bxd5 {[%emt 0:03:57]} 13. exd5 {[%emt 0:00:11]} Ne5 {[%emt 0:01:02]} 14. Rb4 {[%emt 0:00:31]} Qd7 {[%emt 0:08:52]} 15. a4 {[%emt 0:05:38]} Rfb8 {[%emt 0:08:24]} 16. a5 {[%emt 0:02:57]} Re8 {[%emt 0:02:43]} 17. Qd4 {[%emt 0:08:32]} Bf8 {[%emt 0:06:27]} 18. Rf1 {[%emt 0:26:51]} Ng6 {[%emt 0:06:24]} 19. Bd3 {[%emt 0:02:45]} Rxe3 {[%emt 0:05:30]} 20. Qxe3 {[%emt 0:13:38]} Nxd5 {[%emt 0:00:37]} 21. Qd4 {[%emt 0:00:13]} Nxb4 {[%emt 0:00:13]} 22. Qxb4 {[%emt 0:00:06]} Ne5 {[%emt 0:03:58]} 23. Bf5 {[%emt 0:02:47]} Qc7 {[%emt 0:01:51]} 24. Qh4 {[%emt 0:11:26]} g6 {[%emt 0:01:41]} 25. Be4 {[%emt 0:00:15]} Bg7 {[%emt 0:03:20]} 26. c3 {[%emt 0:01:44]} Rf8 {[%emt 0:01:05]} 27. Bd5 {[%emt 0:02:07]} b5 {[%emt 0:01:05]} 28. Qf2 {[%emt 0:04:29]} Nc4 {[%emt 0:04:07]} 29. Kh1 {[%emt 0:01:47]} Nxa5 {[%emt 0:01:03]} 30. Nxa5 {[%emt 0:01:34]} Qxa5 {[%emt 0:00:05]} 31. Qa7 {[%emt 0:00:18]} Kh8 {[%emt 0:06:34]} 32. Qe7 {[%emt 0:01:17]} b4 {[%emt 0:04:58]} 33. c4 {[%emt 0:01:44]} Qd8 {[%emt 0:04:54]} 34. Qb7 {[%emt 0:01:16]} a5 {[%emt 0:01:33]} 35. b3 {[%emt 0:00:08]} f5 {[%emt 0:00:20]} 36. Re1 {[%emt 0:00:28]} Re8 {[%emt 0:00:45]} 37. Rxe8+ {[%emt 0:01:20]} Qxe8 {[%emt 0:00:05]} 38. g3 {[%emt 0:00:05]} Bd4 {[%emt 0:03:56]} 39. Kg2 {[%emt 0:01:26]} Qe2+ {[%emt 0:02:05]} 40. Kh3 {[%emt 0:00:00]} Bg1 {[%emt 0:00:00]} 41. Qc8+ {[%emt 0:04:38]} Kg7 {[%emt 0:01:47]} 42. Qg8+ {[%emt 0:00:15]} Kh6 {[%emt 0:00:18]} 43. Qf8+ {[%emt 0:00:16]} Kh5 {[%emt 0:00:23]} 44. Bg2 {[%emt 0:01:44]} Qg4# {[%emt 0:00:05]} 0-1

[Event "Icelandic Open 2019"]
[Site "Akureyri"]
[Date "2019.06.01"]
[Round "9.11"]
[White "Olafsson, Smari"]
[Black "Gower, Sam"]
[Result "1/2-1/2"]
[ECO "B01"]
[WhiteElo "1939"]
[BlackElo "2069"]
[Annotator "NA"]
[PlyCount "41"]
[EventDate "2019.05.25"]
[EventType "swiss"]
[EventCountry "ISL"]
[SourceTitle "playchess.com"]
[Source "ChessBase"]
[SourceQuality "1"]
[TimeControl "40/5400+30:1800+30"]

1. e4 {[%emt 0:00:00]} d5 {[%emt 0:00:00]} 2. exd5 {[%emt 0:00:05]} Qxd5 {[%emt 0:00:00]} 3. Nc3 {[%emt 0:00:31]} Qd8 {[%emt 0:00:00]} 4. d4 {[%emt 0:00:32]} Nf6 {[%emt 0:00:00]} 5. Nf3 {[%emt 0:02:23]} Bg4 {[%emt 0:00:11]} 6. Be2 {[%emt 0:01:04]} e6 {[%emt 0:00:09]} 7. O-O {[%emt 0:00:45]} c6 {[%emt 0:00:55]} 8. Be3 {[%emt 0:03:01]} Nbd7 {[%emt 0:02:19]} 9. a3 {[%emt 0:03:49]} Bd6 {[%emt 0:01:21]} 10. Qd2 {[%emt 0:02:55]} O-O {[%emt 0:03:17]} 11. h3 {[%emt 0:09:23]} Bxf3 {[%emt 0:01:20]} 12. Bxf3 {[%emt 0:00:18]} Re8 {[%emt 0:00:11]} 13. Ne4 {[%emt 0:02:37]} Nxe4 {[%emt 0:04:00]} 14. Bxe4 {[%emt 0:01:57]} Nf6 {[%emt 0:00:15]} 15. Bd3 {[%emt 0:03:07]} Qc7 {[%emt 0:02:42]} 16. c4 {[%emt 0:04:28]} Rad8 {[%emt 0:04:19]} 17. Bg5 {[%emt 0:08:11]} Be7 {[%emt 0:01:30]} 18. Qe3 {[%emt 0:14:17]} g6 $11 {[%emt 0:09:03]} ({Black should try} 18... Qb6 $15) 19. Bf4 {[%emt 0:04:18]} Bd6 {[%emt 0:00:25]} 20. Bg5 {[%emt 0:03:43]} Be7 {[%emt 0:00:49]} 21. Bf4 {[%emt 0:00:37]} 1/2-1/2

[Event "Icelandic Open 2019"]
[Site "Akureyri"]
[Date "2019.06.01"]
[Round "9.12"]
[White "Briem, Benedikt"]
[Black "Kristjansson, Olafur"]
[Result "0-1"]
[ECO "D02"]
[WhiteElo "1811"]
[BlackElo "2069"]
[Annotator "NA"]
[PlyCount "78"]
[EventDate "2019.05.25"]
[EventType "swiss"]
[EventCountry "ISL"]
[SourceTitle "playchess.com"]
[Source "ChessBase"]
[SourceQuality "1"]
[TimeControl "40/5400+30:1800+30"]

1. d4 {[%emt 0:00:32]} d5 {[%emt 0:00:00]} 2. Nf3 {[%emt 0:00:25]} Nf6 {[%emt 0:00:00]} 3. Bf4 {[%emt 0:00:13]} g6 {[%emt 0:00:15]} 4. e3 {[%emt 0:01:03]} Bg7 {[%emt 0:00:07]} 5. c3 {[%emt 0:03:48]} O-O {[%emt 0:00:34]} 6. Bd3 {[%emt 0:00:34]} c5 {[%emt 0:00:48]} 7. Nbd2 {[%emt 0:01:00]} Nc6 {[%emt 0:00:35]} 8. h3 {[%emt 0:01:15] D02: 1 d4 d5 2 Nf3 sidelines, including 2...Nf6 3 g3 and 2...Nf6 3 Bf4} Nd7 {[%emt 0:00:37]} 9. O-O {[%emt 0:01:43]} e5 {[%emt 0:00:14]} 10. dxe5 {[%emt 0:00:07]} Ndxe5 {[%emt 0:00:23]} 11. Nxe5 {[%emt 0:01:53]} (11. Be2 Nxf3+ {½-½ (11) Jojua,D (2575)-Mchedlishvili,M (2601) Tbilisi 2017}) 11... Nxe5 {[%emt 0:00:47]} 12. Bc2 {[%emt 0:01:28]} Nc6 {[%emt 0:08:01]} 13. Nf3 {[%emt 0:10:12]} h6 $146 {[%emt 0:07:31]} ({Predecessor:} 13... d4 14. cxd4 cxd4 15. exd4 Nxd4 16. Nxd4 Qxd4 17. Qxd4 Bxd4 18. Bh6 Rd8 19. Rad1 Be6 {½-½ (18) Almasi,I (2403)-Papp,P (2292) Zalakaros 2014}) 14. Bg3 {[%emt 0:06:36]} Be6 {[%emt 0:02:28]} 15. Bb3 {[%emt 0:04:23]} Qd7 {[%emt 0:04:11]} 16. Qd2 {[%emt 0:01:44]} Rfd8 {[%emt 0:00:44]} 17. Rad1 {[%emt 0:00:50]} b5 {[%emt 0:01:03]} 18. a3 {[%emt 0:05:16]} a5 {[%emt 0:01:24]} 19. Rfe1 {[%emt 0:03:46]} Qb7 {[%emt 0:00:37]} 20. Qc1 {[%emt 0:07:57]} Rac8 {[%emt 0:15:00]} 21. a4 {[%emt 0:01:27]} b4 {[%emt 0:07:54]} 22. c4 {[%emt 0:02:44]} dxc4 {[%emt 0:02:55]} 23. Bxc4 {[%emt 0:00:30]} Bxc4 {[%emt 0:10:56]} 24. Qxc4 {[%emt 0:00:26]} Bxb2 {[%emt 0:01:13]} 25. Qxc5 {[%emt 0:00:39]} Bc3 {[%emt 0:00:14]} 26. Rf1 {[%emt 0:01:34]} Nd4 {[%emt 0:05:06]} 27. exd4 {[%emt 0:03:37]} Rxc5 {[%emt 0:00:29]} 28. dxc5 {[%emt 0:00:05]} Rxd1 {[%emt 0:00:15]} 29. Rxd1 {[%emt 0:00:05]} b3 {[%emt 0:00:16]} 30. Ne5 {[%emt 0:00:36]} Qe4 {[%emt 0:01:06]} 31. f3 {[%emt 0:03:01]} Qe3+ {[%emt 0:00:39]} 32. Bf2 {[%emt 0:00:31]} Qxe5 $19 {[%emt 0:00:11]} 33. f4 {[%emt 0:01:44]} Qxf4 {[%emt 0:00:40]} 34. Rd8+ {[%emt 0:00:50]} Kg7 {[%emt 0:00:32]} 35. c6 {[%emt 0:00:26]} Qc1+ {[%emt 0:00:29]} 36. Kh2 {[%emt 0:00:10]} Be5+ {[%emt 0:00:06]} 37. g3 {[%emt 0:00:28]} b2 {[%emt 0:00:26]} 38. c7 {[%emt 0:00:12]} b1=Q {[%emt 0:01:12]} 39. Rg8+ {[%emt 0:00:16]} Kxg8 {[%emt 0:00:16]} 0-1

[Event "Icelandic Open 2019"]
[Site "Akureyri"]
[Date "2019.06.01"]
[Round "9.13"]
[White "Hardarson, Petur Palmi"]
[Black "Dietzsch, Herbert"]
[Result "1/2-1/2"]
[ECO "E18"]
[WhiteElo "1847"]
[BlackElo "2059"]
[Annotator "NA"]
[PlyCount "36"]
[EventDate "2019.05.25"]
[EventType "swiss"]
[EventCountry "ISL"]
[SourceTitle "playchess.com"]
[Source "ChessBase"]
[SourceQuality "1"]
[TimeControl "40/5400+30:1800+30"]

1. d4 {[%emt 0:00:00]} Nf6 {[%emt 0:02:09]} 2. c4 {[%emt 0:00:01]} e6 {[%emt 0:00:07]} 3. Nf3 {[%emt 0:00:19]} b6 {[%emt 0:00:05]} 4. g3 {[%emt 0:00:23]} Bb7 {[%emt 0:00:05]} 5. Bg2 {[%emt 0:00:12]} Be7 {[%emt 0:00:09]} 6. O-O {[%emt 0:00:32]} O-O {[%emt 0:01:57]} 7. Re1 {[%emt 0:01:15]} d6 {[%emt 0:05:37]} 8. Nc3 {[%emt 0:04:03]} Ne4 {[%emt 0:00:45]} 9. Nxe4 {[%emt 0:01:26]} Bxe4 {[%emt 0:00:07]} 10. Bf1 {[%emt 0:02:52]} Nd7 {[%emt 0:13:44]} 11. Nd2 {[%emt 0:00:00]} Bb7 {[%emt 0:00:11]} 12. e4 {[%emt 0:00:00]} e5 {[%emt 0:02:49]} 13. Nf3 {[%emt 0:09:43]} exd4 {[%emt 0:10:13]} 14. Nxd4 {[%emt 0:01:16]} Nc5 {[%emt 0:01:23]} 15. Bg2 {[%emt 0:13:15]} Rb8 {[%emt 0:04:07]} 16. b4 {[%emt 0:04:14]} Ne6 $11 {[%emt 0:08:27]} 17. Bb2 {[%emt 0:03:21]} Nxd4 {[%emt 0:02:18]} 18. Bxd4 {[%emt 0:00:15]} c5 {[%emt 0:08:28]} 1/2-1/2